bitfinex/quotes_SOLUSD_20220104
["timestamp","ask_amount","ask_price","bid_price","bid_amount"]
[1641298485042,1.5051,171.0,170.91,2.63454536]
[1641298487745,1.2451,171.0,170.91,2.63454536]
[1641298488550,1.2451,171.0,170.91,2.89454536]
[1641298489574,1.5051,171.0,170.91,2.89454536]
[1641298491178,1.5051,171.0,170.91,2.39454536]
[1641298491578,25.723,171.0,170.91,2.39454536]
[1641298492179,25.723,171.0,170.91,2.13454536]
[1641298492377,25.723,171.0,170.91,2.63454536]
[1641298493580,25.723,171.0,170.91,2.89454536]
[1641298494580,25.463,171.0,170.91,2.89454536]
[1641298504695,1.2451,171.0,170.91,2.89454536]
[1641298506495,1.2451,171.0,170.91,11.36454536]
[1641298507296,1.2451,171.0,170.91,8.97]
[1641298508496,1.2451,171.0,170.91,9.23]
[1641298509094,24.2493,171.0,170.91,9.23]
[1641298510095,24.7493,171.0,170.91,9.23]
[1641298510295,24.7493,171.0,170.91,0.76]
[1641298510495,25.0093,171.0,170.91,0.5]
[1641298510696,25.0093,171.0,170.88,17.7953]
[1641298511099,25.0093,171.0,170.88,9.23]
[1641298511297,26.51594563,171.0,170.88,9.23]
[1641298512499,34.98594563,171.0,170.84,9.89669368]
[1641298512698,40.21394563,171.0,170.83,0.29257552]
[1641298512901,1.2968,170.99,170.83,0.29257552]
[1641298513098,8.47,170.98,170.83,0.29257552]
[1641298513299,22.623,170.97,170.83,22.86627552]
[1641298513499,22.883,170.97,170.84,2.88989234]
[1641298513702,23.383,170.97,170.84,2.88989234]
[1641298513900,1.2842,170.96,170.84,3.38989234]
[1641298514100,1.5442,170.96,170.84,3.38989234]
[1641298514401,2.0442,170.96,170.84,3.38989234]
[1641298514602,76.9329,170.96,170.84,3.38989234]
[1641298515001,76.9329,170.96,170.84,3.64989234]
[1641298515202,22.76133456,170.94,170.84,3.64989234]
[1641298515403,22.672,170.93,170.84,3.38989234]
[1641298516000,23.9415,170.93,170.84,3.38989234]
[1641298516801,23.9415,170.93,170.84,3.64989234]
[1641298517600,23.9415,170.93,170.84,3.38989234]
[1641298517800,24.2015,170.93,170.84,3.38989234]
[1641298519004,24.2015,170.93,170.84,3.64989234]
[1641298520407,23.9415,170.93,170.84,3.64989234]
[1641298523337,24.2015,170.93,170.84,3.64989234]
[1641298523740,24.2015,170.93,170.84,3.38989234]
[1641298524140,23.9415,170.93,170.84,3.38989234]
[1641298525042,23.9415,170.93,170.84,3.64989234]
[1641298526446,23.9415,170.93,170.84,3.38989234]
[1641298526646,24.2015,170.93,170.84,3.38989234]
[1641298530246,23.9415,170.93,170.84,3.38989234]
[1641298530847,23.9415,170.93,170.84,0.5]
[1641298531247,23.9415,170.93,170.83,0.29257552]
[1641298531850,23.9415,170.93,170.84,2.33874056]
[1641298532049,24.2015,170.93,170.84,2.59874056]
[1641298532250,24.2015,170.93,170.84,3.09874056]
[1641298532651,24.2015,170.93,170.84,0.5]
[1641298532852,24.2015,170.93,170.83,0.29257552]
[1641298533951,23.9415,170.93,170.84,2.26471264]
[1641298534351,23.9415,170.93,170.84,2.76471264]
[1641298535553,24.2015,170.93,170.84,3.02471264]
[1641298536556,24.2015,170.93,170.84,2.76471264]
[1641298537557,23.9415,170.93,170.84,2.76471264]
[1641298537957,23.9415,170.93,170.84,3.02471264]
[1641298538558,23.9415,170.93,170.84,2.76471264]
[1641298538956,24.2015,170.93,170.84,2.76471264]
[1641298540958,24.2015,170.93,170.84,2.52471264]
[1641298541559,24.2015,170.93,170.84,2.26471264]
[1641298542358,24.2015,170.93,170.84,2.76471264]
[1641298542761,24.7015,170.93,170.84,2.76471264]
[1641298542960,24.7015,170.93,170.84,0.5]
[1641298543163,24.7015,170.93,170.83,0.29257552]
[1641298546965,8.47,170.92,170.83,0.29257552]
[1641298547369,9.23,170.92,170.83,0.29257552]
[1641298548467,1.3024,170.91,170.83,0.29257552]
[1641298548667,9.7724,170.91,170.83,0.29257552]
[1641298548867,10.5324,170.91,170.83,0.29257552]
[1641298549067,22.8704,170.9,170.83,0.29257552]
[1641298549468,23.1304,170.9,170.83,0.29257552]
[1641298549869,22.8704,170.9,170.83,3.19278411]
[1641298550070,24.1792,170.9,170.83,3.45278411]
[1641298550269,24.1792,170.9,170.83,3.95278411]
[1641298550969,24.1792,170.9,170.83,0.79257552]
[1641298551472,24.1792,170.9,170.83,0.29257552]
[1641298552069,24.1792,170.9,170.84,2.31801631]
[1641298552471,24.1792,170.9,170.84,3.07801631]
[1641298554271,22.8704,170.9,170.84,3.07801631]
[1641298554873,1.3198,170.93,170.84,3.07801631]
[1641298555071,24.1958,170.93,170.84,3.07801631]
[1641298555973,24.4558,170.93,170.84,3.07801631]
[1641298558879,24.4558,170.93,170.84,2.81801631]
[1641298559981,24.4558,170.93,170.84,3.07801631]
[1641298560683,24.1958,170.93,170.84,3.07801631]
[1641298561484,1.50664563,170.97,170.84,11.28801631]
[1641298561685,1.50664563,170.97,170.84,18.06470999]
[1641298562285,1.3383,170.96,170.84,26.98010999]
[1641298562687,1.50664563,170.97,170.84,26.98010999]
[1641298562887,24.9797,170.98,170.85,24.7992]
[1641298563085,24.9797,170.98,170.87,2.21595886]
[1641298563285,24.9797,170.98,170.87,27.14235886]
[1641298563486,24.9797,170.98,170.87,27.90235886]
[1641298563985,25.2397,170.98,170.87,29.21135886]
[1641298565112,24.9797,170.98,170.87,32.02939446]
[1641298565716,2.80344563,170.99,170.88,9.89669368]
[1641298565717,1.50664563,170.99,170.88,9.89669368]
[1641298565911,1.50664563,170.99,170.88,10.39669368]
[1641298566211,1.50664563,170.99,170.9,2.24461835]
[1641298566411,50.38883495,171.02,170.91,8.47]
[1641298566815,50.38883495,171.02,170.91,9.23]
[1641298567414,50.38883495,171.02,170.91,10.65669368]
[1641298568714,50.64883495,171.02,170.91,10.65669368]
[1641298570617,50.64883495,171.02,170.91,9.23]
[1641298572318,26.1496,171.02,170.91,9.23]
[1641298572519,26.1496,171.02,170.91,10.65669368]
[1641298573520,25.8896,171.02,170.91,10.65669368]
[1641298573922,25.8896,171.02,170.91,9.23]
[1641298574523,25.8896,171.02,170.91,10.65669368]
[1641298575426,25.8896,171.02,170.91,19.59089368]
[1641298576624,25.8896,171.02,170.91,19.09089368]
[1641298577025,26.1496,171.02,170.91,17.6642]
[1641298577825,1.50664563,171.01,170.91,18.1642]
[1641298578826,1.50664563,171.01,170.91,17.9042]
[1641298579024,1.76664563,171.01,170.92,1.42669368]
[1641298579225,1.2718,171.0,170.92,9.89669368]
[1641298579427,1.2718,171.0,170.93,2.97102424]
[1641298579925,1.5318,171.0,170.93,3.47102424]
[1641298580425,1.5318,171.0,170.93,3.73102424]
[1641298581026,1.5318,171.0,170.93,0.76]
[1641298581225,1.5318,171.0,170.92,9.23]
[1641298582526,1.5318,171.0,170.92,8.97]
[1641298583134,3.03844563,171.0,170.92,11.39964941]
[1641298583931,3.03844563,171.0,170.92,11.65964941]
[1641298584332,3.03844563,171.0,170.92,11.39964941]
[1641298584731,1.5318,171.0,170.92,11.39964941]
[1641298585132,1.2718,171.0,170.92,11.39964941]
[1641298585332,2.77844563,171.0,170.92,11.39964941]
[1641298586032,2.77844563,171.0,170.92,11.65964941]
[1641298586234,1.2718,171.0,170.92,11.65964941]
[1641298586635,1.5318,171.0,170.92,11.65964941]
[1641298587838,1.2718,171.0,170.92,11.65964941]
[1641298589245,1.5318,171.0,170.92,11.65964941]
[1641298589439,1.2718,171.0,170.92,11.65964941]
[1641298593568,1.2718,171.0,170.92,13.08634309]
[1641298594164,1.5318,171.0,170.92,13.08634309]
[1641298594367,1.2718,171.0,170.92,13.08634309]
[1641298603082,1.2718,171.0,170.92,17.52365761]
[1641298603284,26.13594563,171.02,170.92,17.52365761]
[1641298603483,1.50664563,171.02,170.92,17.52365761]
[1641298603681,1.50664563,171.02,170.93,23.575]
[1641298603884,1.50664563,171.02,170.95,3.04572732]
[1641298604083,26.68464563,171.05,170.95,11.77572732]
[1641298604282,30.10678435,171.04,170.96,1.42669368]
[1641298604482,30.10678435,171.04,170.96,2.18669368]
[1641298604684,1.50664563,171.05,170.96,2.18669368]
[1641298604882,79.1607,171.06,170.97,1.42669368]
[1641298604883,1.50664563,171.04,170.97,1.42669368]
[1641298605082,1.50664563,171.04,170.97,1.68669368]
[1641298605282,1.50664563,171.04,170.98,2.43098302]
[1641298605482,1.2944,171.05,170.98,2.69098302]
[1641298605682,28.30538524,171.05,170.98,3.19098302]
[1641298606087,52.92818524,171.05,170.98,3.19098302]
[1641298606782,54.43483087,171.05,170.98,3.19098302]
[1641298607181,54.43483087,171.05,170.98,2.93098302]
[1641298607682,52.92818524,171.05,170.98,2.93098302]
[1641298608989,54.43483087,171.05,170.98,0.5]
[1641298609315,54.43483087,171.05,170.97,1.92669368]
[1641298609488,52.92818524,171.05,170.97,1.42669368]
[1641298609690,52.92818524,171.05,170.97,1.92669368]
[1641298610390,52.92818524,171.05,170.97,2.18669368]
[1641298615401,25.9172,171.05,170.97,2.18669368]
[1641298619530,25.9172,171.05,170.97,0.76]
[1641298619827,25.9172,171.05,170.97,0.26]
[1641298620029,25.9172,171.05,170.96,37.44577911]
[1641298620228,25.9172,171.05,170.96,45.91577911]
[1641298621129,25.9172,171.05,170.96,45.65577911]
[1641298621730,25.9172,171.05,170.96,47.08247279]
[1641298622436,24.6228,171.05,170.96,47.08247279]
[1641298622633,1.50664563,171.06,170.96,47.34247279]
[1641298623134,1.50664563,171.08,170.96,47.34247279]
[1641298623732,1.50664563,171.08,170.96,56.11187279]
[1641298624537,1.3381,171.07,170.96,56.11187279]
[1641298625436,1.3381,171.07,170.97,8.7689]
[1641298625638,1.3381,171.07,170.99,2.94840958]
[1641298625837,1.3381,171.07,171.0,8.47]
[1641298626037,1.3381,171.07,171.0,8.73]
[1641298626238,1.3381,171.07,171.0,9.23]
[1641298626637,101.6897,171.1,171.0,9.23]
[1641298627439,101.6897,171.1,171.0,33.1483]
[1641298627738,1.50664563,171.14,171.01,1.42669368]
[1641298628039,25.32044563,171.17,171.02,10.6534143]
[1641298628238,25.32044563,171.17,171.03,22.8526]
[1641298628438,25.32044563,171.17,171.04,8.47]
[1641298628638,49.76523506,171.17,171.05,27.88385062]
[1641298628938,48.25858943,171.17,171.06,8.47]
[1641298629338,48.25858943,171.17,171.06,10.65669368]
[1641298629539,48.25858943,171.17,171.07,1.42669368]
[1641298629741,49.76523506,171.17,171.08,2.67282957]
[1641298629941,25.32044563,171.17,171.08,3.17282957]
[1641298630140,1.50664563,171.17,171.09,9.89669368]
[1641298630537,1.50664563,171.17,171.1,1.42669368]
[1641298630738,1.50664563,171.17,171.12,2.76500145]
[1641298630942,1.50664563,171.17,171.12,3.26500145]
[1641298631141,1.50664563,171.17,171.12,3.52500145]
[1641298631741,73.69974563,171.2,171.12,3.52500145]
[1641298632441,72.1931,171.2,171.12,3.52500145]
[1641298633543,1.50664563,171.2,171.12,3.52500145]
[1641298633744,1.50664563,171.2,171.13,9.89669368]
[1641298633945,1.50664563,171.2,171.13,10.39669368]
[1641298634144,1.50664563,171.2,171.14,1.42669368]
[1641298634345,1.50664563,171.21,171.15,2.68230632]
[1641298634546,1.50664563,171.21,171.16,8.47]
[1641298634948,1.50664563,171.21,171.16,9.23]
[1641298635975,1.50664563,171.24,171.16,9.23]
[1641298636376,1.50664563,171.23,171.16,9.23]
[1641298636776,1.50664563,171.23,171.16,8.73]
[1641298637976,1.50664563,171.23,171.16,9.23]
[1641298638178,1.50664563,171.24,171.16,9.23]
[1641298641784,1.50664563,171.24,171.16,8.97]
[1641298642283,2.00664563,171.24,171.16,8.97]
[1641298642682,2.26664563,171.24,171.16,8.97]
[1641298642884,1.50664563,171.22,171.16,8.97]
[1641298643684,1.50664563,171.23,171.16,8.97]
[1641298644086,1.50664563,171.23,171.16,8.47]
[1641298644484,1.50664563,171.23,171.16,8.73]
[1641298645087,1.50664563,171.23,171.16,9.23]
[1641298645285,1.50664563,171.22,171.16,9.23]
[1641298646586,1.50664563,171.22,171.16,0.76]
[1641298646987,1.50664563,171.22,171.14,3.30586692]
[1641298647888,26.1896,171.25,171.14,3.30586692]
[1641298648090,26.4496,171.25,171.14,3.30586692]
[1641298650087,26.1896,171.25,171.15,9.89669368]
[1641298650487,26.1896,171.25,171.16,1.42669368]
[1641298650786,26.1896,171.25,171.17,8.47]
[1641298650988,26.1896,171.25,171.17,9.23]
[1641298652990,26.4496,171.25,171.17,9.23]
[1641298653991,26.1896,171.25,171.17,9.23]
[1641298656293,27.69624563,171.25,171.17,9.23]
[1641298657496,27.69624563,171.25,171.17,10.65669368]
[1641298657497,1.50664563,171.25,171.17,10.65669368]
[1641298657898,76.41124563,171.27,171.17,10.65669368]
[1641298659098,1.50664563,171.27,171.17,10.65669368]
[1641298659495,1.50664563,171.28,171.17,10.65669368]
[1641298660100,0.02,171.3,171.21,2.33835196]
[1641298660299,1.50664563,171.31,171.22,33.211995]
[1641298660502,1.50664563,171.31,171.22,33.471995]
[1641298660701,1.50664563,171.31,171.22,35.39868868]
[1641298660902,1.50664563,171.31,171.23,1.42669368]
[1641298661101,1.50664563,171.31,171.24,8.47]
[1641298661301,26.2151,171.32,171.24,8.47]
[1641298661503,26.2151,171.32,171.24,9.23]
[1641298664702,1.50664563,171.34,171.24,10.65669368]
[1641298665201,26.2013,171.37,171.24,10.65669368]
[1641298665202,2.74164563,171.36,171.24,10.65669368]
[1641298665402,24.3046,171.35,171.24,10.65669368]
[1641298666204,1.2777,171.34,171.24,10.65669368]
[1641298668411,1.2777,171.34,171.24,10.39669368]
[1641298669109,1.2777,171.34,171.24,8.97]
[1641298669838,1.50664563,171.33,171.24,8.97]
[1641298670638,2.78434563,171.34,171.24,8.97]
[1641298671038,3.04434563,171.34,171.24,8.97]
[1641298671839,3.54434563,171.34,171.24,8.97]
[1641298672043,1.50664563,171.32,171.24,8.97]
[1641298672441,1.76664563,171.32,171.24,8.47]
[1641298672641,27.45804039,171.29,171.2,11.42542929]
[1641298672842,27.45804039,171.29,171.2,11.92542929]
[1641298673041,27.71804039,171.29,171.2,11.92542929]
[1641298673242,27.71804039,171.29,171.2,8.97]
[1641298673543,27.45804039,171.29,171.2,8.97]
[1641298673742,27.71804039,171.29,171.2,8.97]
[1641298674141,27.45804039,171.29,171.2,8.97]
[1641298674541,27.45804039,171.29,171.2,9.23]
[1641298676743,27.45804039,171.29,171.2,10.65669368]
[1641298677646,27.45804039,171.29,171.2,9.23]
[1641298678145,27.53714563,171.31,171.2,10.65669368]
[1641298678545,26.0305,171.31,171.2,10.65669368]
[1641298680648,26.0305,171.31,171.2,9.23]
[1641298681048,26.2905,171.31,171.21,1.42669368]
[1641298681255,26.0305,171.31,171.22,8.47]
[1641298681451,26.0305,171.31,171.22,8.97]
[1641298681649,26.0305,171.31,171.22,10.39669368]
[1641298681848,26.0305,171.31,171.22,10.65669368]
[1641298682049,1.50664563,171.34,171.22,10.65669368]
[1641298682449,1.50664563,171.34,171.22,20.55263737]
[1641298682651,1.50664563,171.34,171.22,26.17448391]
[1641298682849,77.73714563,171.39,171.22,26.17448391]
[1641298683051,29.59329409,171.37,171.23,1.303]
[1641298683249,29.59329409,171.37,171.24,8.47]
[1641298683452,29.59329409,171.37,171.25,2.18354409]
[1641298683655,29.59329409,171.37,171.26,8.47]
[1641298683857,29.85329409,171.37,171.26,8.97]
[1641298684050,29.59329409,171.37,171.26,10.65669368]
[1641298684252,76.2305,171.39,171.26,10.65669368]
[1641298684855,77.73714563,171.39,171.26,10.65669368]
[1641298685658,76.2305,171.39,171.26,10.65669368]
[1641298686362,77.73714563,171.39,171.26,10.65669368]
[1641298687561,1.50664563,171.38,171.26,10.65669368]
[1641298689565,77.73714563,171.39,171.26,10.65669368]
[1641298692572,77.73714563,171.39,171.26,34.51039368]
[1641298696798,77.73714563,171.39,171.26,43.26439368]
[1641298697199,77.73714563,171.39,171.26,44.59199368]
[1641298697696,1.50664563,171.38,171.26,44.59199368]
[1641298698298,77.73714563,171.39,171.26,44.59199368]
[1641298698698,78.23714563,171.39,171.26,35.83799368]
[1641298699098,1.50664563,171.38,171.26,35.83799368]
[1641298700400,1.324,171.37,171.26,35.83799368]
[1641298700801,1.324,171.37,171.26,11.98429368]
[1641298701103,6.196,171.37,171.26,8.47]
[1641298701400,9.97664563,171.36,171.22,8.5993]
[1641298701600,23.3403,171.35,171.22,8.5993]
[1641298702003,23.6003,171.35,171.22,11.38383151]
[1641298702303,25.60694563,171.35,171.22,11.38383151]
[1641298702500,1.3464,171.34,171.22,11.38383151]
[1641298702701,27.44094998,171.33,171.22,11.38383151]
[1641298703101,27.70094998,171.33,171.22,11.38383151]
[1641298703501,27.70094998,171.33,171.22,8.5993]
[1641298703902,28.20094998,171.33,171.22,8.5993]
[1641298704506,28.20094998,171.33,171.22,11.3148705]
[1641298704903,29.70759561,171.33,171.22,11.8148705]
[1641298706407,29.70759561,171.33,171.22,12.0748705]
[1641298707207,1.2763,171.32,171.22,0.5]
[1641298707407,1.2763,171.32,171.19,0.5]
[1641298707408,104.8044,171.32,171.19,0.5]
[1641298707608,113.5344,171.32,171.19,0.5]
[1641298707811,113.5344,171.32,171.17,9.2277]
[1641298708211,113.5344,171.32,171.18,3.04881959]
[1641298708408,1.50664563,171.31,171.18,3.54881959]
[1641298708609,1.50664563,171.31,171.18,3.80881959]
[1641298708809,2.26664563,171.31,171.18,3.54881959]
[1641298709014,1.50664563,171.3,171.18,3.54881959]
[1641298709411,1.3129,171.29,171.18,3.54881959]
[1641298709613,1.5729,171.29,171.18,3.54881959]
[1641298709811,2.0729,171.29,171.18,3.54881959]
[1641298710812,2.0729,171.29,171.15,8.47]
[1641298711014,1.50664563,171.28,171.15,0.5]
[1641298711214,8.47,171.27,171.15,9.3117]
[1641298711410,8.97,171.27,171.15,9.3117]
[1641298711610,24.24431307,171.26,171.15,9.3117]
[1641298711812,1.50664563,171.25,171.15,12.31319915]
[1641298712012,1.76664563,171.25,171.15,9.3117]
[1641298712314,0.76,171.25,171.15,9.3117]
[1641298712714,125.59611307,171.26,171.15,9.3117]
[1641298712913,127.1027587,171.26,171.15,12.25123145]
[1641298713112,126.8427587,171.26,171.15,12.25123145]
[1641298713413,126.3427587,171.26,171.15,9.3117]
[1641298713614,126.8427587,171.26,171.15,9.3117]
[1641298714019,126.8427587,171.26,171.15,9.5717]
[1641298715417,127.1027587,171.26,171.15,9.5717]
[1641298716519,126.6027587,171.26,171.15,9.5717]
[1641298716718,126.6027587,171.26,171.15,10.99839368]
[1641298716919,127.1027587,171.26,171.15,10.99839368]
[1641298717518,126.6027587,171.26,171.15,10.99839368]
[1641298717919,126.6027587,171.26,171.15,9.5717]
[1641298717920,127.1027587,171.26,171.15,9.5717]
[1641298719021,126.6027587,171.26,171.15,9.5717]
[1641298719220,126.3427587,171.26,171.15,9.5717]
[1641298719424,126.8427587,171.26,171.15,9.5717]
[1641298719621,127.1027587,171.26,171.15,9.5717]
[1641298719823,126.6027587,171.26,171.15,9.5717]
[1641298721622,126.3427587,171.26,171.15,9.5717]
[1641298722250,126.3427587,171.26,171.15,10.99839368]
[1641298724749,126.3427587,171.26,171.15,19.46839368]
[1641298724951,124.83611307,171.26,171.15,19.46839368]
[1641298726651,124.83611307,171.26,171.15,19.20839368]
[1641298728053,124.83611307,171.26,171.15,18.0417]
[1641298729054,124.83611307,171.26,171.15,17.7817]
[1641298729255,125.09611307,171.26,171.15,17.7817]
[1641298729855,125.09611307,171.26,171.15,8.97]
[1641298730158,125.59611307,171.26,171.15,8.47]
[1641298730356,127.1027587,171.26,171.15,8.47]
[1641298730956,127.1027587,171.26,171.15,8.97]
[1641298731156,1.50664563,171.25,171.15,8.97]
[1641298731363,2.00664563,171.25,171.15,8.47]
[1641298731558,2.26664563,171.25,171.15,9.23]
[1641298731758,2.26664563,171.25,171.15,8.97]
[1641298732858,2.00664563,171.25,171.15,8.97]
[1641298733057,0.76,171.25,171.15,0.76]
[1641298733456,0.76,171.25,171.13,2.27130769]
[1641298733457,125.8635587,171.26,171.13,3.03130769]
[1641298733658,1.50664563,171.25,171.13,3.03130769]
[1641298733858,2.00664563,171.25,171.13,3.03130769]
[1641298734057,1.2258,171.24,171.13,3.03130769]
[1641298734458,1.7258,171.24,171.13,3.03130769]
[1641298734657,1.7258,171.24,171.13,4.45800137]
[1641298737060,1.9858,171.24,171.13,2.77130769]
[1641298738563,1.9858,171.24,171.13,3.03130769]
[1641298738966,1.7258,171.24,171.13,2.77130769]
[1641298739164,1.9858,171.24,171.13,2.77130769]
[1641298740367,1.9858,171.24,171.13,3.03130769]
[1641298742570,1.9858,171.24,171.13,2.77130769]
[1641298743971,1.9858,171.24,171.13,3.03130769]
[1641298744173,3.49244563,171.24,171.13,3.03130769]
[1641298744772,1.9858,171.24,171.13,3.03130769]
[1641298745173,1.9858,171.24,171.13,25.67940769]
[1641298746475,1.4858,171.24,171.13,25.67940769]
[1641298746879,1.9858,171.24,171.13,25.67940769]
[1641298748206,1.4858,171.24,171.13,25.67940769]
[1641298748408,1.9858,171.24,171.13,25.67940769]
[1641298748808,1.9858,171.24,171.13,3.03130769]
[1641298749509,1.4858,171.24,171.13,11.50130769]
[1641298749709,1.4858,171.24,171.13,12.92800137]
[1641298750113,1.2258,171.24,171.13,12.92800137]
[1641298751115,1.2258,171.24,171.13,21.25044858]
[1641298751312,125.1035587,171.26,171.13,21.25044858]
[1641298751513,25.84344563,171.26,171.13,21.25044858]
[1641298751714,1.50664563,171.26,171.14,23.5994]
[1641298751913,1.50664563,171.28,171.15,9.783]
[1641298752114,1.50664563,171.28,171.16,24.5069]
[1641298752314,1.50664563,171.28,171.17,8.47]
[1641298752513,30.07740804,171.29,171.17,8.73]
[1641298752714,30.07740804,171.29,171.18,23.2589]
[1641298752914,30.07740804,171.29,171.19,2.38537236]
[1641298753314,30.33740804,171.29,171.19,2.88537236]
[1641298753713,24.082,171.28,171.19,2.88537236]
[1641298753914,25.4071,171.28,171.19,2.88537236]
[1641298754516,25.6671,171.28,171.19,3.14537236]
[1641298755115,27.17374563,171.28,171.19,3.14537236]
[1641298755715,25.6671,171.28,171.19,3.14537236]
[1641298756518,27.17374563,171.28,171.19,3.14537236]
[1641298756920,26.91374563,171.28,171.19,3.14537236]
[1641298757518,26.91374563,171.28,171.19,2.64537236]
[1641298758818,25.4071,171.28,171.19,3.14537236]
[1641298759419,25.4071,171.28,171.19,2.88537236]
[1641298759718,31.58405367,171.29,171.19,2.88537236]
[1641298759918,31.58405367,171.29,171.19,4.31206604]
[1641298760320,31.58405367,171.29,171.19,12.78206604]
[1641298760920,31.58405367,171.29,171.19,11.61537236]
[1641298761124,30.07740804,171.29,171.19,11.61537236]
[1641298761322,30.07740804,171.29,171.19,11.35537236]
[1641298761520,30.33740804,171.29,171.19,11.35537236]
[1641298761921,31.59300804,171.29,171.19,11.35537236]
[1641298762723,31.33300804,171.29,171.19,11.35537236]
[1641298763523,31.59300804,171.29,171.19,11.35537236]
[1641298763726,24.1006,171.28,171.19,11.35537236]
[1641298764124,24.3606,171.28,171.19,11.35537236]
[1641298765124,24.8606,171.28,171.19,10.85537236]
[1641298765323,24.3606,171.28,171.19,2.38537236]
[1641298765524,24.3606,171.28,171.19,2.64537236]
[1641298766525,24.3606,171.28,171.19,3.14537236]
[1641298766936,24.1006,171.28,171.19,3.14537236]
[1641298767226,30.07740804,171.29,171.19,3.14537236]
[1641298768733,30.07740804,171.29,171.2,1.42669368]
[1641298768933,30.07740804,171.29,171.2,0.5]
[1641298769131,30.07740804,171.29,171.2,0.76]
[1641298769333,30.07740804,171.29,171.2,0.26]
[1641298769730,30.07740804,171.29,171.19,3.14537236]
[1641298776743,24.4483,171.28,171.19,3.14537236]
[1641298777340,25.6896,171.28,171.19,0.76]
[1641298777540,25.6896,171.28,171.19,0.5]
[1641298777741,25.6896,171.28,171.18,19.3833]
[1641298778441,25.9496,171.28,171.18,19.3833]
[1641298782074,25.9496,171.28,171.18,20.80999368]
[1641298782277,24.7083,171.28,171.18,20.80999368]
[1641298782477,2.79834563,171.3,171.18,20.80999368]
[1641298783073,1.2917,171.3,171.18,20.80999368]
[1641298783274,25.0501,171.3,171.19,24.393]
[1641298783474,29.41362006,171.29,171.2,8.47]
[1641298783873,29.41362006,171.29,171.2,9.23]
[1641298787178,25.0449,171.3,171.2,9.23]
[1641298787579,25.0449,171.3,171.2,8.97]
[1641298787779,25.3049,171.3,171.2,8.97]
[1641298788180,25.0449,171.3,171.2,8.97]
[1641298788982,25.0449,171.3,171.2,9.23]
[1641298791486,25.3049,171.3,171.2,9.23]
[1641298792086,25.3049,171.3,171.2,8.97]
[1641298792288,25.0449,171.3,171.2,8.97]
[1641298794288,25.0449,171.3,171.2,16.52313262]
[1641298794489,25.0449,171.3,171.2,17.9498263]
[1641298795190,25.0449,171.3,171.2,10.39669368]
[1641298795389,25.0449,171.3,171.2,8.97]
[1641298795990,25.0449,171.3,171.2,10.39669368]
[1641298797994,77.1863,171.31,171.2,10.39669368]
[1641298798199,1.50664563,171.33,171.2,10.65669368]
[1641298798493,1.50664563,171.33,171.21,23.5641]
[1641298798692,1.50664563,171.33,171.22,8.47]
[1641298798895,0.02,171.34,171.23,2.81596482]
[1641298799095,0.02,171.34,171.23,37.4479585]
[1641298799296,29.98836915,171.34,171.23,37.9479585]
[1641298800198,29.96836915,171.34,171.23,37.9479585]
[1641298801324,29.96836915,171.34,171.24,1.42669368]
[1641298801523,29.96836915,171.34,171.23,36.52126482]
[1641298802324,29.96836915,171.34,171.23,11.78596482]
[1641298802524,24.1916,171.33,171.23,11.78596482]
[1641298802924,24.1916,171.33,171.23,8.97]
[1641298803123,1.3525,171.32,171.23,8.97]
[1641298803824,1.8525,171.32,171.23,8.97]
[1641298804225,1.8525,171.32,171.23,0.5]
[1641298804424,78.9772,171.32,171.19,24.2194]
[1641298804828,78.9772,171.32,171.19,0.5]
[1641298805026,23.0566,171.31,171.19,0.5]
[1641298805230,23.0566,171.31,171.18,12.28359733]
[1641298805826,1.231,171.3,171.18,12.28359733]
[1641298807026,1.231,171.3,171.18,13.60949733]
[1641298807627,1.231,171.3,171.19,24.3191]
[1641298807830,1.231,171.3,171.19,24.8191]
[1641298809730,1.231,171.3,171.19,26.24579368]
[1641298810029,1.231,171.3,171.19,24.8191]
[1641298811531,1.231,171.3,171.19,33.2891]
[1641298814130,1.231,171.3,171.19,34.71579368]
[1641298814331,1.231,171.3,171.19,33.2891]
[1641298814730,1.731,171.3,171.19,33.2891]
[1641298816738,1.231,171.3,171.2,1.42669368]
[1641298816939,77.1247,171.32,171.21,8.47]
[1641298817142,1.50664563,171.33,171.21,8.47]